{"text_format":"1","workbook":"xlsx","n_sheets":4,"sheets":["設置場所変更依頼フォーム_一般物件","設置場所の変更に関する覚書（双方捺印方式）","記載例","設置場所変更依頼書（差入方式）"],"not_rendered":{"charts":0,"images":19,"macros":1,"external_links":0,"defined_names":2,"comments":0,"pivot_tables":0},"unopened":[],"bounds":{"document_bytes":16777216,"sheet_cells":100000,"rows_first":2000,"rows_last":500,"rows_between":2000,"halvings":0,"cell_chars":16384,"cell_head_chars":4096},"cells_cut":0,"cells_raw":0,"read":"whole","date_system":"1900"}

{"sheet":"設置場所変更依頼フォーム_一般物件","index":0,"n_rows":26,"n_cols":46,"rows_kept":26,"cut":false,"hidden":false,"merged":[[0,1,0,23],[1,1,1,23],[3,1,3,4],[3,5,3,23],[2,3,2,22],[23,5,23,7],[23,8,23,23],[13,5,13,7],[13,9,13,10],[13,12,13,13],[14,5,14,23],[17,5,17,23],[18,5,18,23],[19,5,19,23],[24,8,24,23],[25,1,25,4],[25,5,25,23],[5,1,5,4],[6,1,6,4],[9,1,10,4],[10,5,10,12],[10,13,10,23],[20,1,20,4],[21,1,24,4],[21,5,21,7],[21,8,21,23],[24,5,24,7],[13,1,13,4],[22,5,22,7],[22,8,22,23],[5,5,5,23],[6,5,6,23],[4,0,17,0],[11,1,12,4],[12,5,12,12],[12,13,12,23],[15,1,15,4],[15,5,15,23],[14,1,14,4],[4,1,4,4],[4,5,4,23],[7,1,8,4],[8,5,8,12],[8,13,8,23],[7,5,7,23],[17,1,17,4],[9,5,9,23],[20,5,20,23],[11,5,11,23],[16,1,16,4],[16,5,16,23],[18,1,18,4],[19,1,19,4]]}
[null,"＜設置場所変更依頼書＞\n◎恐れ入りますが、お手続きには事務取扱手数料が発生いたしますことご了承ください"]
[null,"◎記載例をご参考にご記入の上、当社営業担当者宛にメール等にてご提出をお願い致します。\n（契約4件以上の場合は、「設置場所変更依頼書（別紙）」をあわせてご提出ください。）"]
[]
[null,"ご契約者名\n　※正式商号を記入ください"]
["👈複数ある場合は+押下","　契約№"]
[null,"　契約№　　　　　　2契約目"]
[null,"　契約№　　　　　　3契約目"]
[null,"　変更物件",null,null,null,null,null,null,null,null,null,null,null,null,null,null,null,null,null,null,null,null,null,null,null,null,null,null,null,null,null,null,null,null,null,null,null,null,null,null,null,null,null,null,false,false]
[null,null,null,null,null,"※一部の場合、変更対象物件："]
[null,"　変更物件　　　　　2契約目",null,null,null,null,null,null,null,null,null,null,null,null,null,null,null,null,null,null,null,null,null,null,null,null,null,null,null,null,null,null,null,null,null,null,null,null,null,null,null,null,null,null,false,false]
[null,null,null,null,null,"※一部の場合、変更対象物件："]
[null,"　変更物件　　　　　3契約目",null,null,null,null,null,null,null,null,null,null,null,null,null,null,null,null,null,null,null,null,null,null,null,null,null,null,null,null,null,null,null,null,null,null,null,null,null,null,null,null,null,null,false,false]
[null,null,null,null,null,"※一部の場合、変更対象物件："]
[null,"変更日（西暦記載）",null,null,null,null,null,null,"年",null,null,"月",null,null,"日"]
[null,"　新設置場所\n　　※都道府県から記載してください"]
[null,"　新設置場所　　　　　2契約目\n　　※都道府県から記載してください"]
[null,"　新設置場所　　　　　3契約目\n　　※都道府県から記載してください"]
[null,"　請求先変更希望\n　　※お引落案内・ご請求書宛名",null,null,null,null,null,null,null,null,null,null,null,null,null,null,null,null,null,null,null,null,null,null,null,null,null,null,null,null,null,null,null,null,null,null,null,null,null,null,null,null,null,null,false,false]
[null,"　請求先変更希望　　2契約目\n　　※お引落案内・ご請求書宛名",null,null,null,null,null,null,null,null,null,null,null,null,null,null,null,null,null,null,null,null,null,null,null,null,null,null,null,null,null,null,null,null,null,null,null,null,null,null,null,null,null,null,false,false]
[null,"　請求先変更希望　　3契約目\n　　※お引落案内・ご請求書宛名",null,null,null,null,null,null,null,null,null,null,null,null,null,null,null,null,null,null,null,null,null,null,null,null,null,null,null,null,null,null,null,null,null,null,null,null,null,null,null,null,null,null,false,false]
[null,"　手数料ご請求方法",null,null,null,null,null,null,null,null,null,null,null,null,null,null,null,null,null,null,null,null,null,null,null,null,null,null,null,null,null,null,null,null,null,null,null,null,null,null,null,null,null,null,false,false]
[null,"弊社よりご連絡させていただく\n場合のご連絡先",null,null,null,"部署"]
[null,null,null,null,null,"ご担当者名"]
[null,null,null,null,null,"電話番号"]
[null,null,null,null,null,"e-mail"]
[null,"備考（連絡事項）"]

{"sheet":"設置場所の変更に関する覚書（双方捺印方式）","index":1,"n_rows":25,"n_cols":5,"rows_kept":25,"cut":false,"hidden":true,"merged":[[19,0,19,4],[0,0,0,4],[2,0,2,4],[10,0,10,4],[13,0,13,4],[18,0,18,4]]}
[{"$f":"_xlfn.CONCAT(設置場所変更依頼フォーム_一般物件!F14,\"年\",設置場所変更依頼フォーム_一般物件!J14,\"月\",設置場所変更依頼フォーム_一般物件!M14,\"日\")","v":"年月日"}]
[]
["設置場所の変更に関する覚書"]
[]
["甲）[ユーザー／割賦買主]",null,null,"乙）JAML"]
[]
[]
[]
[]
[]
[{"$f":"_xlfn.CONCAT(設置場所変更依頼フォーム_一般物件!F4,\"（以下甲という）及びＪＡ三井リース株式会社（以下乙という）は、以下の通り覚書（以下本覚書という）を締結する。本覚書締結の証として本書２通を作成し、甲及び乙が記名捺印の上、各1通を保有する。\",\"但し、上記の者は、電子契約による契約の締結に合意した場合には、その締結の証として本書の電磁的記録を作成し、各自電子署名を実施の上、その電磁的記録を保管します。\")","v":"（以下甲という）及びＪＡ三井リース株式会社（以下乙という）は、以下の通り覚書（以下本覚書という）を締結する。本覚書締結の証として本書２通を作成し、甲及び乙が記名捺印の上、各1通を保有する。但し、上記の者は、電子契約による契約の締結に合意した場合には、その締結の証として本書の電磁的記録を作成し、各自電子署名を実施の上、その電磁的記録を保管します。"}]
[]
["第１条（設置場所の変更）"]
["①   甲及び乙は、甲乙間にて締結した末尾記載の契約（以下原契約という）における物件の設置場所を、本覚書締結日付にて末尾記載の通りに変更することを合意する。"]
["②   前項の設置場所の変更は、甲が甲の責任と費用負担において行うものとする。"]
[]
[]
["第２条（その他）"]
["甲及び乙は、本覚書その他甲乙間にて書面をもって定めた事項を除き、原契約に定める契約条件に何等の変更がないことを確認する。"]
["以上"]
["【末尾の表示】"]
["契約名","契約No.","契約日","物件名","変更後の設置場所"]
["リース契約",{"$f":"IF(設置場所変更依頼フォーム_一般物件!F5=\"\",\"\",設置場所変更依頼フォーム_一般物件!F5)","v":""},null,null,{"$f":"IF(設置場所変更依頼フォーム_一般物件!F15=\"\",\"\",設置場所変更依頼フォーム_一般物件!F15)","v":""}]
[null,{"$f":"IF(設置場所変更依頼フォーム_一般物件!F6=\"\",\"\",設置場所変更依頼フォーム_一般物件!F6)","v":""},null,null,{"$f":"IF(設置場所変更依頼フォーム_一般物件!F16=\"\",\"\",設置場所変更依頼フォーム_一般物件!F16)","v":""}]
[null,{"$f":"IF(設置場所変更依頼フォーム_一般物件!F7=\"\",\"\",設置場所変更依頼フォーム_一般物件!F7)","v":""},null,null,{"$f":"IF(設置場所変更依頼フォーム_一般物件!F17=\"\",\"\",設置場所変更依頼フォーム_一般物件!F17)","v":""}]

{"sheet":"記載例","index":2,"n_rows":16,"n_cols":15,"rows_kept":16,"cut":false,"hidden":false,"merged":[[15,1,15,4],[15,5,15,23],[10,1,10,4],[11,1,14,4],[11,5,11,7],[11,8,11,23],[12,5,12,7],[12,8,12,23],[13,5,13,7],[13,8,13,23],[14,5,14,7],[14,8,14,23],[7,5,7,7],[7,9,7,10],[7,12,7,13],[8,1,8,4],[8,5,8,23],[4,0,9,0],[4,1,4,4],[4,5,4,23],[0,1,0,23],[1,1,1,23],[2,3,2,22],[3,1,3,4],[3,5,3,23],[5,1,6,4],[5,6,5,10],[5,13,5,17],[6,5,6,12],[6,13,6,23],[9,1,9,4],[9,5,9,23],[7,1,7,4]]}
[null,"＜設置場所変更依頼書＞\n◎恐れ入りますが、お手続きには事務取扱手数料が発生いたしますことご了承ください"]
[null,"◎記載例をご参考にご記入の上、当社営業担当者宛にメール等にてご提出をお願い致します。\n（契約4件以上の場合は、「設置場所変更依頼書（別紙）」をあわせてご提出ください。）"]
[]
[null,"ご契約者名\n　※正式商号を記入ください",null,null,null,"●●商事株式会社"]
[null,"　契約№",null,null,null,"P1234567-1"]
[null,"　変更物件",null,null,null,null,null,false,null,null,null,null,null,true]
[null,null,null,null,null,"※一部の場合、変更対象物件：",null,null,null,null,null,null,null,"●●社製複合機　型式：ABC-1100　１台"]
[null,"変更日（西暦記載）",null,null,null,2025,null,null,"年",10,null,"月",15,null,"日"]
[null,"　新設置場所\n　　※都道府県から記載してください",null,null,null,"東京都中央区京橋●丁目●番地●号"]
[null,"　請求先変更希望\n　　※お引落案内・ご請求書宛名"]
[null,"　手数料ご請求方法"]
[null,"弊社よりご連絡させていただく\n場合のご連絡先",null,null,null,"部署",null,null,"営業第一部"]
[null,null,null,null,null,"ご担当者名",null,null,"三井　太郎"]
[null,null,null,null,null,"電話番号",null,null,"090－●●●ー●●●"]
[null,null,null,null,null,"e-mail",null,null,"●●●●＠XXXXXX.co.jp"]
[null,"備考（連絡事項）"]

{"sheet":"設置場所変更依頼書（差入方式）","index":3,"n_rows":34,"n_cols":5,"rows_kept":34,"cut":false,"hidden":false,"merged":[[27,0,27,4],[0,0,0,4],[2,0,2,4],[12,0,12,4],[26,1,26,3],[25,1,25,3],[24,1,24,3],[15,0,15,4]]}
[{"$f":"_xlfn.CONCAT(設置場所変更依頼フォーム_一般物件!F14,\"年\",設置場所変更依頼フォーム_一般物件!J14,\"月\",設置場所変更依頼フォーム_一般物件!M14,\"日\")","v":"年月日"}]
[]
["設置場所変更依頼書"]
[]
[]
["ＪＡ三井リース株式会社　御中"]
[]
[null,null,null,"［お客様署名・捺印欄］"]
[]
[]
[]
[]
[{"$f":"_xlfn.CONCAT(\"　当社(私)は、下記契約における物件の設置場所を、\",設置場所変更依頼フォーム_一般物件!F14,\"年\",設置場所変更依頼フォーム_一般物件!J14,\"月\",設置場所変更依頼フォーム_一般物件!M14,\"日付にて下記の通りに変更することと致しました。\")","v":"　当社(私)は、下記契約における物件の設置場所を、年月日付にて下記の通りに変更することと致しました。"}]
["つきましては、この旨ご承諾頂きますよう本書をもってご依頼申上げます。"]
["なお、物件の取外し、搬出入、据付、再設定、その他設置場所の変更に係る一切の事項については、当社(私)が自"]
["己の責任と費用負担において行います。また、設置場所の変更に際しては、貴社所定の事務取扱手数料をお支払い致"]
["します。"]
[]
["契約名","契約No.","契約日"," 物件名","変更後の設置場所"]
[null,{"$f":"IF(設置場所変更依頼フォーム_一般物件!F5=\"\",\"\",設置場所変更依頼フォーム_一般物件!F5)","v":""},null,null,{"$f":"IF(設置場所変更依頼フォーム_一般物件!F15=\"\",\"\",設置場所変更依頼フォーム_一般物件!F15)","v":""}]
[null,{"$f":"IF(設置場所変更依頼フォーム_一般物件!F6=\"\",\"\",設置場所変更依頼フォーム_一般物件!F6)","v":""},null,null,{"$f":"IF(設置場所変更依頼フォーム_一般物件!F16=\"\",\"\",設置場所変更依頼フォーム_一般物件!F16)","v":""}]
[null,{"$f":"IF(設置場所変更依頼フォーム_一般物件!F7=\"\",\"\",設置場所変更依頼フォーム_一般物件!F7)","v":""},null,null,{"$f":"IF(設置場所変更依頼フォーム_一般物件!F17=\"\",\"\",設置場所変更依頼フォーム_一般物件!F17)","v":""}]
[]
["貴社ご連絡先"]
["部署名",{"$f":"IF(設置場所変更依頼フォーム_一般物件!I22=\"\",\"\",設置場所変更依頼フォーム_一般物件!I22)","v":""}]
["担当者名",{"$f":"IF(設置場所変更依頼フォーム_一般物件!I23=\"\",\"\",設置場所変更依頼フォーム_一般物件!I23)","v":""}]
["電話番号",{"$f":"IF(設置場所変更依頼フォーム_一般物件!I24=\"\",\"\",設置場所変更依頼フォーム_一般物件!I24)","v":""}]
["以上"]
[]
[null,null,null,null,"●●●●年●月●日"]
[{"$f":"_xlfn.CONCAT(設置場所変更依頼フォーム_一般物件!F4,\"御中\")","v":"御中"}]
[]
["　上記事項を承諾しました。"]
[null,null,null,"ＪＡ三井リース株式会社"]